bitfinex-derivatives/quotes_BTCF0:USTF0_20250722
["timestamp","ask_amount","ask_price","bid_price","bid_amount"]
[1753193538196,0.1881797,118340.0,118330.0,1.34051361]
[1753193538597,0.3570919,118340.0,118330.0,1.34051361]
[1753193538896,0.1881797,118340.0,118330.0,1.34051361]
[1753193539091,0.3570919,118340.0,118330.0,1.34051361]
[1753193539489,0.3570919,118340.0,118330.0,1.34035361]
[1753193540088,0.3819419,118340.0,118330.0,1.34003361]
[1753193540295,0.2130297,118340.0,118330.0,1.34003361]
[1753193540488,0.1881797,118340.0,118330.0,1.34003361]
[1753193540691,0.3570919,118340.0,118330.0,1.34003361]
[1753193541189,0.3570919,118340.0,118330.0,1.33987361]
[1753193541393,0.3819419,118340.0,118330.0,1.33987361]
[1753193541588,0.01717044,118360.0,118350.0,0.1688979]
[1753193541589,0.21327044,118360.0,118350.0,0.1688979]
[1753193541794,0.18842044,118360.0,118350.0,1.66484207]
[1753193541998,0.01717044,118360.0,118350.0,2.12362075]
[1753193542299,0.01717044,118360.0,118350.0,1.70229658]
[1753193542799,0.18705404,118360.0,118350.0,1.70229658]
[1753193543097,0.38315404,118360.0,118350.0,1.33929658]
[1753193543296,0.38415404,118360.0,118350.0,1.33929658]
[1753193543596,0.38415404,118360.0,118350.0,0.68001658]
[1753193543798,0.38315404,118360.0,118350.0,1.33905658]
[1753193544095,0.38315404,118360.0,118350.0,0.68301658]
[1753193544398,0.38315404,118360.0,118350.0,1.33909658]
[1753193544597,0.38215404,118360.0,118350.0,1.34009658]
[1753193544796,0.38215404,118360.0,118350.0,1.34209658]
[1753193545094,0.38215404,118360.0,118350.0,1.30839658]
[1753193545397,0.21327044,118360.0,118350.0,1.34109658]
[1753193545595,0.13851044,118360.0,118350.0,1.34329658]
[1753193545894,0.30739404,118360.0,118350.0,1.34329658]
[1753193546094,0.35730404,118360.0,118350.0,1.34329658]
[1753193546495,0.13851044,118360.0,118350.0,1.34329658]
[1753193546798,1.7438311,118370.0,118360.0,0.1688836]
[1753193546997,1.8649711,118370.0,118360.0,0.5822236]
[1753193547391,1.6961,118370.0,118360.0,0.5822236]
[1753193547593,1.5,118370.0,118360.0,1.00574777]
[1753193547798,1.5,118370.0,118360.0,1.10109339]
[1753193549102,1.6688694,118370.0,118360.0,1.33772922]
[1753193549289,1.5,118370.0,118360.0,1.33772922]
[1753193549801,1.5,118370.0,118360.0,1.75905339]
[1753193550100,0.0002,118380.0,118370.0,0.2212094]
[1753193550296,0.3402908,118390.0,118380.0,0.2211951]
[1753193550501,0.3649408,118390.0,118380.0,1.2399951]
[1753193550695,0.3649408,118390.0,118380.0,1.33102449]
[1753193552102,0.3669408,118390.0,118380.0,1.33102449]
[1753193552705,0.3699408,118390.0,118380.0,1.33102449]
[1753193553102,0.17625,118390.0,118380.0,1.75234866]
[1753193553704,0.3450909,118390.0,118380.0,1.75234866]
[1753193554106,0.17625,118390.0,118380.0,1.75234866]
[1753193555710,0.005,118390.0,118380.0,1.75234866]
[1753193557505,0.0002,118400.0,118390.0,0.1688408]
[1753193557699,0.3651141,118410.0,118400.0,0.2211666]
[1753193557898,0.3649141,118410.0,118400.0,1.1864266]
[1753193558102,1.16555632,118410.0,118400.0,0.65672]
[1753193558313,0.1688266,118400.0,118390.0,0.0188084]
[1753193558610,1.14393077,118400.0,118390.0,0.6752884]
[1753193559010,1.56525494,118400.0,118390.0,0.0188084]
[1753193559215,0.1688408,118390.0,118380.0,0.5]
[1753193559406,1.14394497,118390.0,118380.0,1.13132]
[1753193559713,1.56288897,118390.0,118380.0,0.65632]
[1753193560501,1.39404817,118390.0,118370.0,1.16836]
[1753193560710,0.1688694,118370.0,118360.0,0.01886946]
[1753193560916,1.14397357,118370.0,118360.0,0.84383306]
[1753193561117,1.14397357,118370.0,118360.0,0.67494946]
[1753193561812,1.14397357,118370.0,118360.0,0.84383306]
[1753193562209,0.7226494,118370.0,118360.0,0.84683306]
[1753193562408,0.3618494,118370.0,118360.0,1.20763306]
[1753193562708,0.11923,118370.0,118360.0,1.81510363]
[1753193562905,0.16856,118380.0,118370.0,0.1688694]
[1753193563110,0.16856,118380.0,118370.0,0.6242594]
[1753193563314,0.3374151,118380.0,118370.0,0.6242594]
[1753193563519,0.16856,118380.0,118370.0,0.6242594]
[1753193563719,0.3374151,118380.0,118370.0,0.6242594]
[1753193564111,0.3374151,118380.0,118370.0,0.5905594]
[1753193564418,0.3618351,118380.0,118370.0,0.5296694]
[1753193565020,0.3618351,118380.0,118370.0,0.1688694]
[1753193565216,0.3374294,118370.0,118360.0,0.73908786]
[1753193565520,0.3618494,118370.0,118360.0,1.37681323]
[1753193566213,0.3618494,118370.0,118360.0,1.37665323]
[1753193566407,0.3618494,118370.0,118360.0,0.27709683]
[1753193566710,0.78317357,118370.0,118360.0,0.84503306]
[1753193566913,0.78317357,118370.0,118360.0,0.02086946]
[1753193567109,0.3618494,118370.0,118360.0,0.8260836]
[1753193567420,0.3618494,118370.0,118360.0,1.1868836]
[1753193567806,0.3618494,118370.0,118360.0,0.3628]
[1753193568017,0.78317357,118370.0,118360.0,0.65708]
[1753193568511,0.78317357,118370.0,118360.0,0.8259636]
[1753193568714,0.78317357,118370.0,118360.0,0.65708]
[1753193568916,0.78317357,118370.0,118360.0,0.8259636]
[1753193569214,0.78317357,118370.0,118360.0,0.1708836]
[1753193569412,0.78317357,118370.0,118360.0,0.8258836]
[1753193571116,0.78317357,118370.0,118360.0,0.657]
[1753193571621,0.78317357,118370.0,118360.0,0.8258836]
[1753193572217,0.78317357,118370.0,118360.0,0.8255636]
[1753193572412,0.78317357,118370.0,118360.0,0.65668]
[1753193572917,0.78317357,118370.0,118360.0,0.8255636]
[1753193573419,0.78317357,118370.0,118360.0,0.65668]
[1753193573919,1.14397357,118370.0,118360.0,0.65668]
[1753193574217,1.14397357,118370.0,118360.0,0.6564]
[1753193574514,0.7226494,118370.0,118360.0,0.8252836]
[1753193574714,0.3618494,118370.0,118360.0,0.8252836]
[1753193575613,0.19298,118370.0,118360.0,1.1860836]
[1753193575814,0.04953,118380.0,118370.0,0.2260094]
[1753193576020,0.46340248,118390.0,118380.0,0.2297451]
[1753193576216,0.46340248,118390.0,118380.0,1.2447451]
[1753193576217,0.43939767,118390.0,118380.0,1.2447451]
[1753193576422,0.22833727,118390.0,118380.0,0.5907451]
[1753193576724,0.39717807,118390.0,118380.0,1.2784051]
[1753193577022,0.32342807,118390.0,118380.0,1.36819363]
[1753193577223,0.39817807,118390.0,118380.0,1.2446651]
[1753193577425,0.38122769,118390.0,118380.0,1.2446651]
[1753193577825,0.38122769,118390.0,118380.0,0.5532951]
[1753193578027,0.80255186,118390.0,118380.0,1.1836551]
[1753193578226,0.38122769,118390.0,118380.0,1.1836551]
[1753193579229,0.3628208,118390.0,118380.0,1.1836551]
[1753193580127,0.3628208,118390.0,118380.0,1.2445451]
[1753193580327,0.3638208,118390.0,118380.0,1.2782451]
[1753193580524,0.17056,118390.0,118380.0,1.69956927]
[1753193580830,0.12123,118390.0,118380.0,1.79426415]
[1753193581440,0.002,118390.0,118380.0,1.79426415]
[1753193582423,0.0002,118400.0,118390.0,0.2399908]
[1753193582628,0.0002,118410.0,118400.0,0.2631766]
[1753193582928,0.4463928,118420.0,118410.0,0.2631623]
[1753193583127,0.46459623,118420.0,118410.0,0.6241623]
[1753193583322,0.18696343,118420.0,118410.0,0.6241623]
[1753193583532,0.3373581,118420.0,118410.0,0.6241623]
[1753193584225,0.16856,118420.0,118410.0,1.1402688]
[1753193584428,0.11923,118420.0,118410.0,1.1402688]
[1753193584628,0.2880281,118420.0,118410.0,0.71894463]
[1753193584830,0.2880281,118420.0,118410.0,0.78762249]
[1753193585027,0.2880281,118420.0,118410.0,0.78862249]
[1753193585228,0.3373581,118420.0,118410.0,0.78862249]
[1753193585425,0.3373581,118420.0,118410.0,1.44230249]
[1753193585830,0.78310227,118420.0,118410.0,1.1843723]
[1753193586128,0.3617781,118420.0,118410.0,1.1843723]
[1753193586533,0.3617781,118420.0,118410.0,0.5692623]
[1753193586731,0.3617781,118420.0,118410.0,0.8609023]
[1753193586929,0.78310227,118420.0,118410.0,0.8233323]
[1753193587125,0.78310227,118420.0,118410.0,0.65448]
[1753193587524,0.78310227,118420.0,118410.0,0.8232923]
[1753193587931,0.78310227,118420.0,118410.0,0.1710123]
[1753193588231,0.3617781,118420.0,118410.0,1.1839323]
[1753193588628,0.3617781,118420.0,118410.0,0.8231323]
[1753193588932,0.3617781,118420.0,118410.0,1.1839323]
[1753193589138,0.3617781,118420.0,118410.0,1.2445823]
[1753193589535,0.78310227,118420.0,118410.0,0.42365]
[1753193589736,0.78310227,118420.0,118410.0,0.65416]
[1753193589943,0.78310227,118420.0,118410.0,0.8229723]
[1753193590234,0.3617781,118420.0,118410.0,0.8229723]
[1753193590440,0.3617781,118420.0,118410.0,1.2444223]
[1753193590739,0.16856,118420.0,118410.0,1.2781223]
[1753193591041,0.3373581,118420.0,118410.0,1.2781223]
[1753193591241,0.16856,118420.0,118410.0,1.2781223]
[1753193591442,0.17849926,118430.0,118420.0,0.2631481]
[1753193591631,0.13007926,118430.0,118420.0,1.04547227]
[1753193591941,0.34708306,118430.0,118420.0,0.71343472]
[1753193592335,0.37171306,118430.0,118420.0,0.71343472]
[1753193592531,0.20292926,118430.0,118420.0,0.71343472]
[1753193592737,0.37171306,118430.0,118420.0,0.71343472]
[1753193593137,0.17829926,118430.0,118420.0,0.71343472]
[1753193593337,0.34708306,118430.0,118420.0,0.71343472]
[1753193593741,1.15383723,118430.0,118420.0,0.820278]
[1753193594044,0.3547838,118430.0,118420.0,1.182078]
[1753193594245,0.3547838,118430.0,118420.0,1.242728]
[1753193594545,0.3547838,118430.0,118420.0,1.276428]
[1753193595945,0.16137,118430.0,118420.0,1.37064642]
[1753193596339,0.11315,118430.0,118420.0,1.79197059]
[1753193596541,0.3303396,118440.0,118430.0,0.2631338]
[1753193596739,0.3301396,118440.0,118430.0,0.6241338]
[1753193597541,1.13689377,118440.0,118430.0,0.0002]
[1753193597736,1.13789377,118440.0,118430.0,0.0002]
[1753193597936,1.13789377,118440.0,118430.0,0.65088]
[1753193598735,1.13889377,118440.0,118430.0,0.65088]
[1753193599142,1.13889377,118440.0,118430.0,0.65064]
[1753193600245,0.3547981,118420.0,118410.0,0.3608]
[1753193600449,0.77612227,118420.0,118410.0,1.01108]
[1753193600650,0.77612227,118420.0,118410.0,1.1798923]
[1753193601152,0.3547981,118420.0,118410.0,1.1798923]
[1753193601655,0.3547981,118420.0,118410.0,1.37152429]
[1753193601855,0.3547981,118420.0,118410.0,1.37352429]
[1753193603452,0.3547981,118420.0,118410.0,1.01272429]
[1753193603646,0.3547981,118420.0,118410.0,1.37352429]
[1753193604553,0.3547981,118420.0,118410.0,1.33982429]
[1753193604751,0.77612227,118420.0,118410.0,0.8220923]
[1753193604952,1.13692227,118420.0,118410.0,0.8214523]
[1753193605160,0.77612227,118420.0,118410.0,0.8214523]
[1753193605658,0.3547981,118420.0,118410.0,0.1718123]
[1753193605846,0.3547981,118420.0,118410.0,0.8212923]
[1753193606147,0.77612227,118420.0,118410.0,0.8212923]
[1753193606655,0.77612227,118420.0,118410.0,0.65248]
[1753193607954,0.77612227,118420.0,118410.0,0.8212923]
[1753193608355,0.3547981,118420.0,118410.0,0.8212923]
[1753193608951,0.3547981,118420.0,118410.0,0.1718123]
[1753193609151,0.3547981,118420.0,118410.0,0.8209323]
[1753193609354,0.3547981,118420.0,118410.0,1.1817323]
[1753193610257,0.3547981,118420.0,118410.0,1.2760823]
[1753193610550,0.2416327,118440.0,118430.0,0.2062338]
[1753193610757,0.23519013,118440.0,118430.0,1.2727738]
[1753193611059,0.16137,118440.0,118430.0,1.2727738]
[1753193611246,0.3301396,118440.0,118430.0,1.2727738]
[1753193612050,0.3311396,118440.0,118430.0,1.2727738]
[1753193612752,0.001,118440.0,118430.0,1.2727738]
[1753193613153,0.11415,118440.0,118430.0,1.2727738]
[1753193613458,0.001,118440.0,118430.0,1.79190681]
[1753193613852,0.001,118440.0,118430.0,1.80026048]
[1753193614759,0.002,118440.0,118430.0,1.80026048]
[1753193614960,0.01739184,118450.0,118440.0,0.2611196]
[1753193615161,0.01739184,118450.0,118440.0,1.04324377]
[1753193615352,0.03559586,118450.0,118440.0,0.70974037]
[1753193615554,0.03559586,118450.0,118440.0,1.13106454]
[1753193616664,0.03559586,118450.0,118440.0,1.13206454]
[1753193616856,0.01820402,118450.0,118440.0,1.13206454]
[1753193617056,0.0132,118460.0,118450.0,0.2429053]
[1753193617362,0.013,118460.0,118450.0,1.77002567]
[1753193617662,0.013,118460.0,118450.0,1.3487015]
[1753193617856,0.1817411,118460.0,118450.0,1.3487015]
[1753193618057,0.17437,118460.0,118450.0,1.3487015]
[1753193618656,0.014,118460.0,118450.0,1.77002567]
[1753193619157,0.0002,118470.0,118460.0,0.2288911]
[1753193619459,0.4563669,118480.0,118470.0,0.1687268]
[1753193619668,0.87749107,118480.0,118470.0,0.8164868]
[1753193619961,0.4139853,118480.0,118470.0,0.8164868]
[1753193620160,0.4139853,118480.0,118470.0,0.8694368]
[1753193620560,0.2030856,118480.0,118470.0,1.2302368]
[1753193620760,0.1622,118480.0,118470.0,1.65876097]
[1753193621064,0.3319126,118480.0,118470.0,1.2374368]
[1753193621362,0.3555826,118480.0,118470.0,1.2374368]
[1753193621560,0.18687,118480.0,118470.0,1.2374368]
[1753193621951,0.3555826,118480.0,118470.0,1.2374368]
[1753193622157,0.3319126,118480.0,118470.0,1.2374368]
[1753193622356,0.3673326,118480.0,118470.0,1.2384368]
[1753193622556,0.3673326,118480.0,118470.0,1.2312368]
[1753193622758,0.3663326,118480.0,118470.0,1.2312368]
[1753193622959,0.18587,118480.0,118470.0,1.2384368]
[1753193623161,0.2043303,118490.0,118480.0,0.2649526]
[1753193623361,0.89977447,118490.0,118480.0,0.09644]
[1753193623567,0.89977447,118490.0,118480.0,0.9120326]
[1753193623753,0.89977447,118490.0,118480.0,0.2651526]
[1753193623954,0.89977447,118490.0,118480.0,0.64704]
[1753193623955,1.26057447,118490.0,118480.0,0.64704]
[1753193624165,0.89977447,118490.0,118480.0,0.0002]
[1753193624356,1.26157447,118490.0,118480.0,0.647]
[1753193624563,0.90077447,118490.0,118480.0,0.8157126]
[1753193625061,0.90177447,118490.0,118480.0,0.8157126]
[1753193625364,0.90177447,118490.0,118480.0,0.8156726]
[1753193625666,0.90177447,118490.0,118480.0,0.6468]
[1753193625667,1.26257447,118490.0,118480.0,0.6468]
[1753193626555,0.1687268,118470.0,118450.0,0.4451754]
[1753193626759,0.90249747,118460.0,118450.0,0.1687553]
[1753193627065,0.90249747,118460.0,118450.0,0.8151553]
[1753193627464,0.86030917,118460.0,118450.0,0.8151553]
[1753193628066,0.86030917,118460.0,118450.0,0.8161553]
[1753193628268,0.86030917,118460.0,118450.0,0.8191553]
[1753193629070,0.86030917,118460.0,118450.0,1.1799553]
[1753193629270,0.81812157,118460.0,118450.0,1.1799553]
[1753193629471,0.4784811,118460.0,118450.0,1.1799553]
[1753193629660,0.58352417,118480.0,118460.0,0.14919]
[1753193629866,0.04155696,118480.0,118470.0,1.1947768]
[1753193630074,0.21026956,118480.0,118470.0,1.2284768]
[1753193630268,0.18587,118480.0,118470.0,1.2284768]
[1753193630575,0.1622,118480.0,118470.0,1.2356768]
[1753193631970,0.1622,118480.0,118470.0,1.2366768]
[1753193632569,0.11288,118480.0,118470.0,1.2366768]
[1753193632870,0.18587,118490.0,118480.0,0.2288626]
[1753193633075,0.18008583,118490.0,118480.0,1.01098677]
[1753193633262,0.18008583,118490.0,118480.0,0.5896626]
[1753193633668,0.18008583,118490.0,118480.0,0.75529883]
[1753193633866,0.11288,118490.0,118480.0,0.75529883]
[1753193634069,0.37677688,118500.0,118490.0,0.2288483]
[1753193634269,0.39466274,118500.0,118490.0,1.2350083]
[1753193634572,0.39466274,118500.0,118490.0,0.8742083]
[1753193634774,0.39466274,118500.0,118490.0,1.2350083]
[1753193634967,0.37677688,118500.0,118490.0,0.8140583]
[1753193635274,0.37677688,118500.0,118490.0,1.1748583]
[1753193635572,0.37877688,118500.0,118490.0,1.2350083]
[1753193635772,0.37877688,118500.0,118490.0,0.8742083]
[1753193636072,0.18642278,118500.0,118490.0,1.74481343]
[1753193636278,0.007,118500.0,118490.0,1.74481343]
[1753193636471,0.008,118500.0,118490.0,1.74481343]
[1753193636864,0.008,118500.0,118490.0,1.32348926]
[1753193637670,0.1766841,118500.0,118490.0,1.32348926]
[1753193638276,0.007,118500.0,118490.0,1.74481343]
[1753193638677,0.3967032,118520.0,118510.0,0.2146199]
[1753193638875,0.3967032,118520.0,118510.0,1.2202199]
[1753193639578,0.19762,118520.0,118510.0,1.2274199]
[1753193639778,0.3662756,118520.0,118510.0,1.2274199]
[1753193639980,0.90271977,118520.0,118510.0,1.2589499]
[1753193640178,0.91128467,118520.0,118510.0,1.2589499]
[1753193640477,0.91328467,118520.0,118510.0,1.2589499]
[1753193640677,0.91328467,118520.0,118510.0,1.4455099]
[1753193640979,1.27408467,118520.0,118510.0,0.4402699]
[1753193641180,0.4833956,118520.0,118510.0,1.0846299]
[1753193641386,0.90471977,118520.0,118510.0,1.0846299]
[1753193642077,0.90471977,118520.0,118510.0,0.3667499]
[1753193642275,0.3712756,118520.0,118510.0,1.0109499]
[1753193642577,0.02367,118560.0,118530.0,0.0409]
[1753193642778,0.02367,118560.0,118550.0,0.5825629]
[1753193642779,0.01837542,118560.0,118550.0,0.5825629]
[1753193643074,0.18587,118570.0,118560.0,0.1685987]
[1753193643278,0.77597867,118570.0,118560.0,0.8368787]
[1753193643474,0.77597867,118570.0,118560.0,1.1982387]
[1753193643669,0.3546545,118570.0,118560.0,1.1982387]
[1753193643867,0.3544687,118560.0,118550.0,0.37945039]
[1753193644075,0.77579287,118560.0,118550.0,0.85746329]
[1753193644668,0.77579287,118560.0,118550.0,0.18726329]
[1753193644871,0.77579287,118560.0,118550.0,0.85770329]
[1753193645169,0.77579287,118560.0,118550.0,1.04442329]
[1753193645370,0.77579287,118560.0,118550.0,1.40522329]
[1753193645577,0.77579287,118560.0,118550.0,0.73462329]
[1753193645775,0.3544687,118560.0,118550.0,0.80129266]
[1753193646176,0.77579287,118560.0,118550.0,0.80129266]
[1753193646370,0.3544687,118560.0,118550.0,0.44049266]
[1753193646681,0.77579287,118560.0,118550.0,0.44049266]
[1753193646875,0.77579287,118560.0,118550.0,0.37382329]
[1753193647082,0.77579287,118560.0,118550.0,0.37582329]
[1753193647980,0.77579287,118560.0,118550.0,0.20721039]
[1753193648169,0.77579287,118560.0,118550.0,0.87885039]
[1753193648374,0.77579287,118560.0,118550.0,1.04746329]
[1753193648775,0.3544687,118560.0,118550.0,1.04746329]
[1753193649177,0.60719417,118560.0,118550.0,1.04746329]
[1753193649377,0.18587,118560.0,118550.0,1.04746329]
[1753193649580,0.18587,118560.0,118550.0,1.82958746]
[1753193649781,0.18587,118560.0,118550.0,1.46141329]
[1753193649977,0.3544687,118560.0,118550.0,1.46141329]
[1753193650286,0.3544687,118560.0,118550.0,1.45421329]
[1753193650486,0.3544687,118560.0,118550.0,1.44196329]
[1753193650686,0.77579287,118560.0,118550.0,1.40826329]
[1753193650875,0.77579287,118560.0,118550.0,1.40822329]
[1753193651075,0.77579287,118560.0,118550.0,0.73662329]
[1753193651387,0.3544687,118560.0,118550.0,1.40806329]
[1753193651578,0.3544687,118560.0,118550.0,1.04726329]
[1753193651779,1.13659287,118560.0,118550.0,1.04710329]
[1753193651979,0.7152687,118560.0,118550.0,0.87849039]
[1753193652182,1.13659287,118560.0,118550.0,1.04710329]
[1753193652877,0.77579287,118560.0,118550.0,0.18221039]
[1753193653079,1.13659287,118560.0,118550.0,0.85305039]
[1753193653275,0.77579287,118560.0,118550.0,1.02166329]
[1753193653587,1.13659287,118560.0,118550.0,0.85305039]
[1753193653784,0.77579287,118560.0,118550.0,0.85305039]
[1753193653992,0.3544687,118560.0,118550.0,0.35082329]
[1753193654178,0.3544687,118560.0,118550.0,1.02314329]
[1753193654378,0.3544687,118560.0,118550.0,1.38394329]
[1753193655581,0.3544687,118560.0,118550.0,1.39619329]
[1753193655886,0.3544687,118560.0,118550.0,1.38394329]
[1753193656383,0.18587,118560.0,118550.0,1.40650329]
[1753193656581,0.1622,118560.0,118550.0,1.87377746]
[1753193657288,0.1622,118560.0,118550.0,1.45245329]
[1753193658684,0.4765787,118560.0,118550.0,0.81963329]
[1753193658986,0.4765787,118560.0,118550.0,1.10835329]
[1753193659192,0.89790287,118560.0,118550.0,1.10835329]
[1753193659388,0.89790287,118560.0,118550.0,0.48238523]
[1753193659685,0.89790287,118560.0,118550.0,0.39693523]
[1753193659885,0.89790287,118560.0,118550.0,0.40886523]
[1753193660088,0.4765787,118560.0,118550.0,0.39693523]
[1753193660788,0.89790287,118560.0,118550.0,0.39693523]
[1753193661087,1.25870287,118560.0,118550.0,0.90040233]
[1753193661392,1.25870287,118560.0,118550.0,0.90044233]
[1753193662482,1.25870287,118560.0,118550.0,0.22832233]
[1753193662989,1.67739887,118560.0,118550.0,0.22832233]
[1753193663182,2.09931887,118560.0,118550.0,0.22832233]
[1753193663489,2.09931887,118560.0,118550.0,0.20578328]
[1753193663891,1.6779947,118560.0,118550.0,0.20578328]
[1753193664390,2.09931887,118560.0,118550.0,0.20578328]
[1753193665486,2.09931887,118560.0,118550.0,0.22832233]
[1753193665683,1.0060747,118560.0,118550.0,0.22832233]
[1753193665883,0.168613,118550.0,118540.0,0.03005207]
[1753193666086,2.34617134,118550.0,118540.0,0.05384909]
[1753193666382,0.4397872,118540.0,118530.0,0.01845196]
[1753193666588,1.22191137,118540.0,118530.0,0.01845196]
[1753193667286,1.89579137,118540.0,118530.0,0.01845196]
[1753193667687,1.89571137,118540.0,118530.0,0.01845196]
[1753193668390,1.89571137,118540.0,118530.0,0.02045196]
[1753193668786,2.31467937,118540.0,118530.0,0.02045196]
[1753193669187,2.06467937,118540.0,118530.0,0.20701196]
[1753193670191,2.06467937,118540.0,118530.0,0.20901196]
[1753193670392,2.06467937,118540.0,118530.0,0.20921196]
[1753193671892,1.39063937,118540.0,118530.0,0.20921196]
[1753193672092,1.39063937,118540.0,118530.0,0.21332]
[1753193672396,2.06427937,118540.0,118530.0,0.21332]
[1753193672581,1.89575137,118540.0,118530.0,0.4420714]
[1753193672785,1.22191137,118540.0,118530.0,0.27343]
[1753193673292,1.22191137,118540.0,118530.0,0.4420714]
[1753193673593,0.4397872,118540.0,118530.0,1.39150951]
[1753193673988,0.4397872,118540.0,118530.0,1.07886951]
[1753193674193,0.22589,118540.0,118530.0,1.75222951]
[1753193674387,0.30037242,118550.0,118540.0,0.4822172]
[1753193674690,0.30017242,118550.0,118540.0,0.4824172]
[1753193674896,0.30017242,118550.0,118540.0,0.52749531]
[1753193675285,0.72149659,118550.0,118540.0,0.71405531]
[1753193675492,0.45656242,118550.0,118540.0,1.3419772]
[1753193675789,0.76676659,118550.0,118540.0,0.21032]
[1753193676788,1.12756659,118550.0,118540.0,0.88304]
[1753193676987,1.12756659,118550.0,118540.0,0.86068]
[1753193677392,1.12756659,118550.0,118540.0,0.86168]
[1753193677592,1.12756659,118550.0,118540.0,0.18876]
[1753193677790,1.12756659,118550.0,118540.0,0.86124]
[1753193678197,1.12756659,118550.0,118540.0,0.18876]
[1753193678491,1.54889076,118550.0,118540.0,0.18876]
[1753193679197,1.12756659,118550.0,118540.0,0.18876]
[1753193679789,1.12756659,118550.0,118530.0,0.02256]
[1753193679790,0.2808272,118540.0,118530.0,0.02256]
[1753193679992,0.2005014,118530.0,118520.0,0.80120811]
[1753193680301,1.22986557,118530.0,118520.0,0.74150811]
[1753193680492,1.22986557,118530.0,118520.0,0.75285811]
[1753193680688,1.22986557,118530.0,118520.0,0.80010811]
[1753193681102,0.8085414,118530.0,118520.0,0.80010811]
[1753193681298,1.22986557,118530.0,118520.0,0.96876371]
[1753193681597,1.22986557,118530.0,118520.0,0.9236856]
[1753193681898,1.22986557,118530.0,118520.0,0.9306856]
[1753193682197,1.22986557,118530.0,118520.0,0.76203]
[1753193682401,1.23825825,118530.0,118520.0,0.09055]
[1753193682601,1.23825825,118530.0,118520.0,0.9297256]
[1753193682900,1.23825825,118530.0,118520.0,0.94763]
[1753193683493,1.23825825,118530.0,118520.0,0.22986]
[1753193683800,1.23825825,118530.0,118520.0,0.27493811]
[1753193684494,1.23825825,118530.0,118520.0,0.32218811]
[1753193684890,1.23825825,118530.0,118520.0,0.27493811]
[1753193685093,1.23825825,118530.0,118520.0,0.22986]
[1753193685594,1.23825825,118530.0,118520.0,0.21851]
[1753193685893,1.23825825,118530.0,118520.0,0.19342993]
[1753193686092,1.90713825,118530.0,118520.0,0.19342993]
[1753193686292,1.48581408,118530.0,118520.0,0.19342993]
[1753193686497,1.90713825,118530.0,118520.0,0.19342993]
[1753193686898,1.90713825,118530.0,118520.0,0.21837993]
[1753193687296,1.48581408,118530.0,118520.0,0.21837993]
[1753193687506,1.90713825,118530.0,118520.0,0.21837993]
[1753193688408,1.90713825,118530.0,118520.0,0.15268173]
[1753193688706,0.4477699,118510.0,118500.0,0.75191]
[1753193688894,1.06122417,118510.0,118490.0,0.04507811]
[1753193689099,1.15029827,118500.0,118490.0,0.08137811]
[1753193689303,1.22990827,118500.0,118490.0,0.12862811]
[1753193689602,0.86910827,118500.0,118490.0,0.12862811]
[1753193689805,1.22990827,118500.0,118490.0,0.12862811]
[1753193690007,1.22990827,118500.0,118490.0,0.16309811]
[1753193690201,1.22990827,118500.0,118490.0,0.33179641]
[1753193690397,1.22990827,118500.0,118490.0,0.16309811]
[1753193690802,1.22990827,118500.0,118490.0,0.33279641]
[1753193691403,0.86910827,118500.0,118490.0,0.33279641]
[1753193691599,0.86910827,118500.0,118490.0,0.31358]
[1753193692002,1.22990827,118500.0,118490.0,0.23586]
[1753193692398,1.22990827,118500.0,118490.0,0.28311]
[1753193692605,1.22990827,118500.0,118490.0,0.4518083]
[1753193692800,1.22990827,118500.0,118490.0,0.4822783]
[1753193693310,0.4000341,118500.0,118490.0,1.3452983]
[1753193693811,0.11915,118500.0,118490.0,1.7060983]
[1753193694009,0.2878341,118500.0,118490.0,1.7060983]
[1753193694204,0.4620925,118510.0,118500.0,0.1686841]
[1753193694409,0.4620925,118510.0,118500.0,0.4784041]
[1753193694800,0.5424325,118510.0,118500.0,0.4784041]
[1753193695000,0.99561667,118510.0,118500.0,0.4784041]
[1753193695206,0.99561667,118510.0,118500.0,0.5484241]
[1753193696004,0.99561667,118510.0,118500.0,0.5524241]
[1753193696406,0.99561667,118510.0,118500.0,0.5574241]
[1753193696606,0.99561667,118510.0,118500.0,0.5576241]
[1753193697410,0.99561667,118510.0,118500.0,0.6741641]
[1753193697606,1.04350667,118510.0,118500.0,0.6741641]
[1753193700919,1.04350667,118510.0,118500.0,0.6691641]
[1753193701110,1.04450667,118510.0,118500.0,0.6691641]
[1753193701617,1.04450667,118510.0,118500.0,0.6651641]
[1753193705821,0.3367098,118510.0,118500.0,1.0259641]
[1753193706318,0.16704,118510.0,118500.0,1.0269641]
[1753193706720,0.16704,118510.0,118500.0,1.0279641]
[1753193707023,0.04789,118510.0,118500.0,1.0279641]
[1753193707421,0.04789,118510.0,118500.0,1.0269641]
[1753193707723,0.04789,118510.0,118500.0,1.0289641]
[1753193707724,0.3357098,118510.0,118500.0,1.0289641]
[1753193708119,0.16704,118510.0,118500.0,1.0289641]
[1753193708318,0.04789,118510.0,118500.0,1.0289641]
[1753193708520,0.04789,118510.0,118500.0,1.0279641]
[1753193708823,0.04789,118510.0,118500.0,1.125348]
[1753193709423,0.2165598,118510.0,118500.0,1.125348]
[1753193710022,0.04789,118510.0,118500.0,1.125348]
[1753193710322,0.2165598,118510.0,118500.0,1.125348]
[1753193710520,0.04789,118510.0,118500.0,1.125348]
[1753193710723,0.2165598,118510.0,118500.0,1.125348]
[1753193711725,0.2165598,118510.0,118500.0,1.20071557]
[1753193712024,0.04789,118510.0,118500.0,1.786348]
[1753193712327,0.0002,118520.0,118510.0,0.4759798]
[1753193712529,0.85218885,118530.0,118520.0,0.4759656]
[1753193712720,0.43066468,118530.0,118520.0,1.4976456]
[1753193712924,0.46432298,118530.0,118520.0,1.4976456]
[1753193713221,0.11968,118530.0,118520.0,1.4976456]
[1753193713724,0.2606161,118540.0,118530.0,0.1686414]
[1753193713920,0.413759,118540.0,118530.0,0.8369514]
[1753193714115,0.24512,118540.0,118530.0,0.8369514]
[1753193714315,0.11968,118540.0,118530.0,0.8369514]
[1753193714516,0.2883072,118540.0,118530.0,0.8369514]
[1753193714721,0.94492078,118550.0,118540.0,0.4511872]
[1753193714928,0.38946361,118550.0,118540.0,1.1360972]
[1753193715125,0.38090582,118550.0,118540.0,1.1360972]
[1753193715324,0.38090582,118550.0,118540.0,1.3226572]
[1753193715527,0.38090582,118550.0,118540.0,1.6834572]
[1753193715728,0.18090582,118550.0,118540.0,1.6834572]
[1753193715928,0.34952972,118550.0,118540.0,1.6834572]
[1753193716526,0.12268,118550.0,118540.0,1.6834572]
[1753193716725,0.1716129,118550.0,118540.0,1.6834572]
[1753193716928,0.003,118550.0,118540.0,1.6834572]
[1753193717529,0.1736129,118550.0,118540.0,1.0234972]
[1753193717837,0.87169707,118550.0,118540.0,1.3217772]
[1753193718032,0.87169707,118550.0,118540.0,0.6626972]
[1753193718333,0.8091729,118550.0,118540.0,0.5496272]